Cogmind - Beta 15 @@@ ROGUE MODE // 2025.05.17 @ 18:04:19 Player: 3.14 Result: Destroyed by Overlord with Heavy Hardcell Cannon Performance ------------- Evolutions (8) 4000 Regions Visited (20) 4000 Robots Destroyed (206) 1030 Value Destroyed (8871) 8871 Prototype IDs (34) 680 Alien Tech Used (0) 0 Bonus (1755) 1755 TOTAL SCORE: 20336 Bonus ------- High Alert Combat Kills 171 Follower Combat Kills 527 Registered with UFD 300 Met Optimus in HQ 500 Met Data Miner 300 Friendly Fire -43 Cogmind --------- Core Integrity 0/1450 Matter 255/300 Energy 94/100 System Corruption 5% Temperature Cool (0) Movement Core (50) Location -2/Protoforge Parts ------- > --- POWER (3) -------- (None) > --- PROPULSION (6) --- Centrium Leg > --- UTILITY (11) ----- Advanced Visual Processing Unit Advanced Signal Interpreter Advanced Target Analyzer Hacking Suite > --- WEAPON (3) ------- (None) > --- INVENTORY (5) ---- Medium Storage Unit Experimental Energy Well (600) Advanced Plasma Cannon Helical Railgun Advanced Micro-nuke Launcher Peak State ------------ > --- POWER ------------ Light Angular Momentum Engine Neutrino Core Particle Reactor > --- PROPULSION ------- Makeshift Leg Flexi-carbon Leg Myomer Leg Overtuned Armored Exoskeleton > --- UTILITY ---------- Advanced Heat Sink Advanced Heat Sink Advanced Heat Sink High-capacity Storage Unit Advanced Energy Well Improved Targeting Computer Makeshift Heavy Armor Plating Improved Hacking Suite > --- WEAPON ----------- Tesla Rifle HERF Cannon HERF Cannon > --- INVENTORY -------- Light Angular Momentum Engine Flexi-carbon Leg Flexi-carbon Leg Improved Thunder Leg Advanced Heat Sink Advanced Sensor Array Matter Filter Makeshift Propulsion Shielding Improved Heavy Armor Plating Makeshift Thermal Plating EM Shield Long-range Proton Cannon Advanced Plasma Cannon Matter Neutralizer Overtuned Coil Gun Overtuned Bore Cannon Heavy Gauss Cannon Grenade Launcher Plasma Sword [Rating: 129] Favorites ----------- Power Meta Core Engine Light Angular Momentum Engine Power Core Meta Core Reactor Particle Reactor Propulsion Light Treads Treads Light Treads Leg Carbon-fiber Leg Wheel Compact Wheel Hover Unit Improved Antigrav System Flight Unit Impulse Thruster Utility Large Storage Unit Device Improved Cooling System Storage Large Storage Unit Processor Improved Targeting Computer Hackware Hacking Suite Protection Light Armor Plating Weapon Assault Rifle Energy Gun Advanced Beam Rifle Energy Cannon Long-range Proton Cannon Ballistic Gun Assault Rifle Ballistic Cannon Overtuned Bore Cannon Launcher Grenade Launcher Impact Weapon Shock Maul Slashing Weapon Plasma Sword Build | -11 -10 -10 -8 -8 -6 -6 -6 -6 -5 -5 -5 -5 -4 -4 -4 -3 -3 -2 -2 -2 ------- Run | Yrd Mat Sub Rec Scr Fac Low Low Dat Pro Fac Upp Upp Fac Upp Upp Res Qua Res Tes Frg Slots Evolved 16 | . . . . . 8 . . . . 2 . . 2 . . 2 . 2 . . Power 2 | . . . . . 1 . . . . 1 . . . . . . . . . . Propulsion 4 | . . . . . 2 . . . . . . . 1 . . 1 . . . . Utility 9 | . . . . . 5 . . . . 1 . . . . . 1 . 2 . . Weapon 1 | . . . . . . . . . . . . . 1 . . . . . . . Parts Attached 206 | 1 17 5 2 3 38 4 2 1 6 19 2 1 21 4 1 28 21 15 15 . Power 25 | . 2 1 . . 3 . 1 . 2 2 1 . 2 2 . 3 3 3 . . Engine 13 | . 1 . . . 2 . . . 1 2 1 . 1 1 . 1 2 1 . . Core 5 | . 1 1 . . 1 . 1 . . . . . . 1 . . . . . . Reactor 7 | . . . . . . . . . 1 . . . 1 . . 2 1 2 . . Propulsion 56 | . 4 1 . 2 12 . . . 1 5 . . 5 . 1 9 6 4 6 . Treads 17 | . 4 1 . 2 3 . . . . . . . . . . 4 1 . 2 . Leg 29 | . . . . . 9 . . . 1 5 . . 5 . 1 4 . . 4 . Wheel 1 | . . . . . . . . . . . . . . . . . . 1 . . Hover 3 | . . . . . . . . . . . . . . . . . 3 . . . Flight 6 | . . . . . . . . . . . . . . . . 1 2 3 . . Utility 79 | . 4 1 . 1 18 2 1 . 1 6 1 . 8 2 . 10 11 8 5 . Device 36 | . . . . . 10 1 . . . 2 1 . 4 1 . 6 6 3 2 . Storage 7 | . 2 . . . . . . . . . . . . 1 . 1 . 1 2 . Processor 13 | . . . . . 3 . . . 1 1 . . 1 . . 2 4 1 . . Hackware 9 | . . . . . 2 . . . . 1 . . . . . 1 1 3 1 . Protection 14 | . 2 1 . 1 3 1 1 . . 2 . . 3 . . . . . . . Artifact . | . . . . . . . . . . . . . . . . . . . . . Weapon 46 | 1 7 2 2 . 5 2 . 1 2 6 . 1 6 . . 6 1 . 4 . Energy Gun 4 | . . . . . 2 . . . . . . . . . . 1 . . 1 . Energy Cannon 16 | . . . . . 2 2 . . 2 4 . . 4 . . 2 . . . . Ballistic Gun 17 | 1 6 1 2 . . . . 1 . 2 . 1 1 . . . . . 2 . Ballistic Cannon 3 | . . . . . 1 . . . . . . . 1 . . 1 . . . . Launcher 3 | . 1 1 . . . . . . . . . . . . . . 1 . . . Special Weapon . | . . . . . . . . . . . . . . . . . . . . . Impact Weapon 1 | . . . . . . . . . . . . . . . . . . . 1 . Slashing Weapon 2 | . . . . . . . . . . . . . . . . 2 . . . . Piercing Weapon . | . . . . . . . . . . . . . . . . . . . . . Special Melee Weapon . | . . . . . . . . . . . . . . . . . . . . . Unidentified Prototypes 15 | . . 1 . . 3 1 . . . . . . . . . 5 1 . 4 . Corrupted Parts 11 | . . . . . . . . . 2 1 . 1 4 . 1 2 . . . . System Corruption 56 | . . . . . . . . . 14 3 . 4 20 . 7 8 . . . . Parts Lost 65 | . 1 . . . 6 . . . 2 4 . . 9 . 2 15 4 15 5 2 Power 8 | . 1 . . . . . . . 1 . . . 2 . . . 1 3 . . Propulsion 21 | . . . . . 1 . . . . 1 . . 3 . . 4 2 6 3 1 Utility 24 | . . . . . 3 . . . . 3 . . 4 . 2 4 1 5 2 . Weapon 12 | . . . . . 2 . . . 1 . . . . . . 7 . 1 . 1 Highest Loss Streak 13 | . 1 . . . 4 . . . 2 2 . . 4 . 2 12 2 13 3 1 To Critical Strikes 1 | . . . . . . . . . . . . . 1 . . . . . . . Average Backups 12 | 6 8 11 12 14 14 15 14 14 14 14 14 15 14 15 18 13 4 4 4 5 Power . | 1 1 1 1 1 . 1 . 1 . . . . . . 1 . . . . . Propulsion 2 | 4 2 2 2 2 1 2 2 2 1 2 5 5 2 1 2 1 . . . . Utility 4 | . 2 4 4 5 5 6 6 6 5 5 4 5 5 7 6 5 2 2 1 2 Weapon 5 | 1 3 3 4 5 7 5 5 5 5 6 5 5 5 6 8 6 1 2 2 3 Tool/Special . | . . . . . . . . . . . . . . . . . . . . . Unused Backups 33 | . 12 . . 5 3 1 . . . . 1 . . 1 . 4 2 2 2 . Power 2 | . . . . 1 1 . . . . . . . . . . . . . . . Propulsion 10 | . 6 . . . . . . . . . . . . . . 1 2 1 . . Utility 10 | . 1 . . 3 . . . . . . 1 . . 1 . 3 . 1 . . Weapon 11 | . 5 . . 1 2 1 . . . . . . . . . . . . 2 . Tool/Special . | . . . . . . . . . . . . . . . . . . . . . Average Slot Usage (%) 84 | . 96 97 90 93 98 87 86 73 85 89 94 94 91 78 77 58 50 58 41 28 Engine 4 | . 6 . . . 5 . . . . 6 11 11 11 9 5 1 4 3 . . Core 6 | . 7 13 10 10 6 12 12 13 11 3 . . . . 5 2 . . . . Reactor 1 | . . . . . . . . . . 5 5 5 3 5 5 3 . . . . Treads 12 | . 24 28 30 31 15 6 4 . . . . . . . . . 18 . 3 2 Leg 9 | . 3 . . . 13 18 18 20 19 16 17 17 20 15 15 14 . . 7 4 Device 8 | . . . . . 15 12 9 6 11 11 17 17 14 10 13 9 8 8 3 . Storage 6 | . 14 13 10 10 5 6 6 6 6 5 5 5 5 5 5 2 . . 1 . Processor 8 | . . . . . 11 12 12 13 14 17 17 17 13 10 6 4 9 17 14 13 Protection 6 | . 11 13 10 9 5 6 8 13 6 5 5 5 5 5 5 2 . . . . Energy Cannon 4 | . . . . . 5 7 12 . 12 8 11 11 12 5 8 5 . . . . Ballistic Gun 10 | . 27 28 30 31 2 . . . . 2 . . 1 5 5 . . . 3 . Peak Build Rating 129 | 6 10 26 26 30 73 79 80 67 72 84 78 77 107 111 112 129 99 90 83 43 Average Rating 58 | 6 8 13 25 28 62 77 76 58 68 79 77 77 88 106 109 86 62 69 59 40 On Entrance 56 | 6 6 10 25 26 30 73 79 69 67 72 76 77 77 106 110 111 31 73 29 43 Naked Turns 1 | . . . . . . . . . . . . . . . . 1 . . . . Heaviest Build 138 | 10 32 56 51 51 59 70 75 72 83 98 93 93 112 133 128 138 30 27 28 3 Greatest Support 178 | 20 40 60 60 60 110 70 70 70 70 73 60 60 130 130 130 155 178 28 55 3 Greatest Overweight (x) 4 | . . . . . 3 . 1 1 1 1 1 1 1 1 . 2 1 1 4 . Average Overweight (x) . | . . . . . . . . . . 1 1 1 . . . . . . . . Largest Inventory Capacity 20 | 8 15 15 15 15 15 15 15 15 15 15 15 15 15 20 20 20 5 15 10 5 Average Capacity 13 | 8 9 15 15 15 15 15 15 15 15 15 15 15 15 18 20 14 5 5 6 5 Most Carried 20 | 6 11 14 14 15 15 15 15 15 15 15 15 15 15 20 20 20 5 5 5 5 Average Carried 12 | 6 8 11 12 14 14 14 14 14 14 14 14 14 14 16 19 14 4 4 4 5 Final Capacity 20 | 8 15 15 15 15 15 15 15 15 15 15 15 15 15 20 20 5 5 5 5 5 Final Carried 20 | 6 11 11 13 15 15 15 15 15 13 15 15 15 15 20 20 4 5 5 5 5 Class Distribution -------------------- 35% | Mutant 19% | Scavenger-Mutant 18% | Tank 9% | Scavenger-Scrapper 5% | Scavenger-Gunner Dominant Class ---------------- Mutant | -10/Materials Mutant | -10/Subcaves Tank | -8/Recycling Tank | -8/Scraptown Scavenger-Mutant | -6/Factory Mutant | -6/Lower Caves Mutant | -6/Lower Caves Mutant | -6/Data Miner Mutant | -5/Proximity Caves Scavenger-Mutant | -5/Factory Scavenger-Mutant | -5/Upper Caves Scavenger-Mutant | -5/Upper Caves Scavenger-Gunner | -4/Factory Scavenger-Scrapper | -4/Upper Caves Scavenger-Scrapper | -4/Upper Caves Mutant | -3/Research Mutant | -3/Quarantine Hacker-Mutant | -2/Research Mutant | -2/Testing Mutant | -2/Protoforge Resources | -11 -10 -10 -8 -8 -6 -6 -6 -6 -5 -5 -5 -5 -4 -4 -4 -3 -3 -2 -2 -2 ----------- Run | Yrd Mat Sub Rec Scr Fac Low Low Dat Pro Fac Upp Upp Fac Upp Upp Res Qua Res Tes Frg Matter Collected 5875 | 200 369 98 413 30 707 256 59 . 386 675 97 23 600 293 253 238 496 246 436 . Remotely . | . . . . . . . . . . . . . . . . . . . . . Salvage Created 11038 | . 544 114 680 . 1013 274 450 . 761 1641 160 88 1146 161 199 1719 702 442 944 . Parts 483 | . 41 8 26 . 46 12 21 . 30 68 9 4 52 9 7 73 22 17 38 . Haulers Intercepted 4 | . 2 . . . 1 . . . . . . . . . . 1 . . . . Recyclers Shooed 10 | . . . 3 . 3 . . . . 1 . . . . . . 1 . 2 . Parts Field Recycled . | . . . . . . . . . . . . . . . . . . . . . Retrieved Matter . | . . . . . . . . . . . . . . . . . . . . . Parts Self-Destructed 60 | . . 1 . . . 9 6 . 14 . 14 . . 9 7 . . . . . Prevented 37 | . . . . . . 7 11 . 12 . 7 . . . . . . . . . Kills | -11 -10 -10 -8 -8 -6 -6 -6 -6 -5 -5 -5 -5 -4 -4 -4 -3 -3 -2 -2 -2 ------- Run | Yrd Mat Sub Rec Scr Fac Low Low Dat Pro Fac Upp Upp Fac Upp Upp Res Qua Res Tes Frg Combat Hostiles Destroyed 148 | . 13 8 2 . 21 4 4 . 12 18 2 . 16 2 3 26 6 5 6 . Melee 14 | . . . . . . . . . . . . . . . . 6 6 2 . . Guns 41 | . 13 1 2 . 3 2 . . 1 11 . . . 1 1 1 . . 5 . Cannons 42 | . . . . . 9 2 2 . 8 3 2 . 7 . 2 7 . . . . AOE 33 | . . 7 . . 8 . . . 2 1 . . 6 . . 5 . 3 1 . Classes Destroyed 21 | . 7 2 1 . 6 1 1 . 1 1 . . 1 . . . . . . . Worker 12 | . . . . . 2 . . . . 7 . . 1 . . . 1 1 . . Builder 8 | . 1 . . . 1 . . . . . . . 2 . . . 1 . 3 . Tunneler 1 | . 1 . . . . . . . . . . . . . . . . . . . Hauler 4 | . 2 . . . 1 . . . . . . . . . . 1 . . . . Recycler 19 | . 1 . 7 . 1 . . . . 2 . . 1 . . . 2 1 4 . Mechanic 1 | . . . . . . . . . 1 . . . . . . . . . . . Operator 4 | . 1 . . . . . . . . . . . 2 . . . . . 1 . Turret 2 | . . 2 . . . . . . . . . . . . . . . . . . Watcher 6 | . . . . . . . . . . 2 . . 1 . . . . 3 . . Swarmer 39 | . 9 4 . . 8 . . . 1 . . . 5 . . 7 . 4 1 . Grunt 50 | . 4 . . . 2 1 2 . 5 11 1 . . . . 15 4 . 5 . Brawler 5 | . . . . . . 1 1 . 1 1 . . . . . 1 . . . . Duelist 4 | . . . . . 1 1 . . 1 . . . . . . 1 . . . . Sentry 8 | . . . 2 . 1 . . . 2 . 1 1 . . . . . 1 . . Specialist 2 | . . . . . 2 . . . . . . . . . . . . . . . Hunter 6 | . . . . . 2 . . . . . . . 4 . . . . . . . Programmer 23 | . . . . . 4 . . . 2 5 . . 5 1 2 2 2 . . . Heavy 1 | . . . . . . . . . . . . . 1 . . . . . . . Behemoth 7 | . . . . . 1 1 1 . . 1 . . 1 1 1 . . . . . Subdweller 4 | . . 4 . . . . . . . . . . . . . . . . . . Packrat 1 | . . . . . . . . . 1 . . . . . . . . . . . Samaritan 3 | . . . . . . . 3 . . . . . . . . . . . . . Best Kill Streak 10 | . 4 6 4 . 4 3 3 . 10 9 1 . 5 1 2 8 2 4 7 . Combat Bots Only 9 | . 4 4 1 . 4 3 3 . 9 7 1 . 5 1 2 8 2 4 3 . Max Kills in Single Turn 3 | . 1 2 1 . 2 1 1 . 1 3 1 1 3 1 1 3 1 3 3 . Gunslinging 1 | . . . . . . . . . . 1 . . . . . . . . . . Exploded 3 | . . 2 . . 2 . . . 1 1 . . 3 . . 3 . 3 1 . Melee 1 | . . . . . . . . . . . . . . . . 1 1 1 . . Uniques/NPCs Destroyed . | . . . . . . . . . . . . . . . . . . . . . Combat | -11 -10 -10 -8 -8 -6 -6 -6 -6 -5 -5 -5 -5 -4 -4 -4 -3 -3 -2 -2 -2 -------- Run | Yrd Mat Sub Rec Scr Fac Low Low Dat Pro Fac Upp Upp Fac Upp Upp Res Qua Res Tes Frg Hostile Shots Fired 1411 | . 64 23 10 . 178 6 32 . 72 128 . 2 148 12 61 286 108 94 161 26 Missed 462 | . 16 9 . . 56 1 9 . 24 41 . 1 42 8 17 105 28 40 56 9 Hits 949 | . 48 14 10 . 122 5 23 . 48 87 . 1 106 4 44 181 80 54 105 17 Melee 13 | . . . . . 5 . 2 . 4 . . . . . . 2 . . . . Projectile 936 | . 48 14 10 . 117 5 21 . 44 87 . 1 106 4 44 179 80 54 105 17 Critical Strikes 54 | . . 1 . . 6 . 1 . 5 4 . . 6 . 2 18 7 1 3 . Actively Blocked 2 | . . . . . . . 1 . 1 . . . . . . . . . . . Part Disruptions 5 | . . . . . . . . . . . . . . . . 3 2 . . . Damage Taken 18872 | . 427 315 152 . 2066 140 434 . 1027 1588 . 20 2095 71 979 3628 1558 1487 2366 519 Core 3183 | . 39 89 . . 205 . . . 69 100 . . 204 . 79 785 130 838 428 217 Absorbed by Shields 1127 | . . . . . 220 . . . 42 38 . 7 249 . . 388 183 . . . Reduced by Siege Mode 15 | . . . . . . . . . . . . . . . . . 15 . . . Redirected to Shielding 27 | . . . . . . . 11 . 16 . . . . . . . . . . . Ignored by Resistances 517 | . . . . . . . . . . 75 . . 227 . 156 . . 59 . . Regen/Repaired (Parts) 159 | . . . . . . . . . . . . . . . . 95 64 . . . Core Remaining (%) 68 | 100 . . . 48 . . . . 67 . . 90 . . 75 . 29 . . . Volleys Fired 545 | . 56 14 22 . 102 13 22 . 43 75 6 2 71 9 34 46 . 1 29 . Largest 3 | . 2 3 3 . 3 2 2 . 2 2 2 2 3 3 3 3 . 1 2 . Hottest 245 | . 40 60 63 . 151 156 156 . 156 171 162 162 243 197 245 241 . 30 76 . Shots Fired 1025 | . 109 20 66 . 188 27 39 . 63 151 12 5 119 17 54 99 . 1 55 . Gun 498 | . 106 11 66 . 78 8 . . 7 88 . . 16 7 33 26 . . 52 . Cannon 492 | . . . . . 103 19 39 . 50 63 12 5 101 10 21 69 . . . . Launcher 35 | . 3 9 . . 7 . . . 6 . . . 2 . . 4 . 1 3 . Special . | . . . . . . . . . . . . . . . . . . . . . Kinetic 469 | . 106 20 66 . 52 . . . 7 88 . . 18 10 34 16 . . 52 . Thermal 248 | . . . . . 129 17 . . 22 11 . . 42 7 20 . . . . . Explosive 26 | . 3 . . . 7 . . . 6 . . . 2 . . 4 . 1 3 . Electromagnetic 282 | . . . . . . 10 39 . 28 52 12 5 57 . . 79 . . . . Robot Hit Streak 24 | . 7 10 13 . 24 9 9 . 11 10 4 5 7 4 13 7 . . 10 . Robot Miss Streak 6 | . 3 1 3 . 6 1 1 . 1 4 4 . 6 4 2 4 . . 1 . Penetration Max 1 | . . . . . . . . . . 1 . . 1 . . 1 . . 1 . Secondary Targets 7 | . 3 . . . . . . . . 2 . . . . . . . . 2 . Max Gunslinging Chain 1 | . 1 . . . . . . . . 1 . . . . . . . . 1 . Shots Hit Robots 697 | . 63 14 41 . 118 20 30 . 35 93 5 4 57 7 37 85 35 14 39 . Core Hits 357 | . 31 17 15 . 52 8 7 . 33 46 3 1 33 2 8 49 15 12 25 . Critical Kills 10 | . . . . . 1 . . . . 3 . . . 1 . 1 . . 4 . Critical Parts Destroyed 13 | . 1 . . . . . . . . 1 . . 1 . 4 2 . . 4 . Critical Strikes 45 | . 1 . . . 4 1 . . 1 5 . . 2 2 4 9 8 . 8 . Burn 1 | . . . . . . 1 . . . . . . . . . . . . . . Meltdown 2 | . . . . . 1 . . . . . . . . 1 . . . . . . Destroy 23 | . 1 . . . 1 . . . . 4 . . 1 1 4 3 . . 8 . Blast 2 | . . . . . 2 . . . . . . . . . . . . . . . Corrupt 3 | . . . . . . . . . 1 1 . . 1 . . . . . . . Sever 14 | . . . . . . . . . . . . . . . . 6 8 . . . Melee Attacks 182 | . . . . . . . . . . . . . . . . 87 56 21 3 15 Impact 18 | . . . . . . . . . . . . . . . . . . . 3 15 Slashing 164 | . . . . . . . . . . . . . . . . 87 56 21 . . Piercing . | . . . . . . . . . . . . . . . . . . . . . Sneak Attacks 8 | . . . . . . . . . . . . . . . . . 6 2 . . Combat Hostiles . | . . . . . . . . . . . . . . . . . . . . . Follow-up Attacks . | . . . . . . . . . . . . . . . . . . . . . Damage Inflicted 24426 | . 748 851 597 . 3619 482 1004 . 1533 3041 164 114 2479 272 1268 3612 1773 1174 1695 . Guns 7004 | . 691 108 581 . 960 100 . . 123 1510 . . 287 129 750 519 . . 1246 . Cannons 9656 | . . . . . 2102 376 931 . 782 1366 164 114 1699 140 518 1464 . . . . Explosions 3924 | . 28 743 . . 529 . 73 . 628 136 . . 486 . . 451 . 404 446 . Melee 3703 | . . . . . . . . . . . . . . . . 1166 1770 767 . . Ramming 139 | . 29 . 16 . 28 6 . . . 29 . . 7 3 . 12 3 3 3 . Kinetic 7410 | . 691 851 581 . 851 . . . 123 1510 . . 287 129 764 377 . . 1246 . Thermal 4815 | . . . . . 2211 294 73 . 229 463 . . 901 140 504 . . . . . Explosive 2758 | . 28 . . . 529 . . . 628 . . . 272 . . 451 . 404 446 . Electromagnetic 5601 | . . . . . . 182 931 . 553 1039 164 114 1012 . . 1606 . . . . Impact . | . . . . . . . . . . . . . . . . . . . . . Slashing 3703 | . . . . . . . . . . . . . . . . 1166 1770 767 . . Piercing . | . . . . . . . . . . . . . . . . . . . . . Highest Corruption 35 | . . . . . 5 5 5 5 20 12 12 16 27 27 28 28 35 . 4 5 Average Corruption 12 | . . . . . 3 5 5 5 5 8 12 12 15 21 20 15 29 . 2 4 Corruption Purged 7 | . . . . . . . . . . . . . . 7 . . . . . . Corruption Blocked 2 | . . . . . . . . . . . . . . . . . . 2 . . Effects 320 | . . . . . 25 12 12 3 26 24 31 4 43 37 25 30 44 . 2 2 Message Errors 78 | . . . . . 7 3 3 . 7 2 10 1 12 6 6 11 10 . . . Matter Fused 87 | . . . . . 4 5 3 1 8 7 11 . 12 13 7 5 10 . 1 . Heat Flow Errors 29 | . . . . . 2 1 1 1 4 2 . . 3 1 4 5 4 . . 1 Energy Discharges 42 | . . . . . 4 . 2 . 3 3 3 1 6 9 3 3 4 . . 1 Parts Rejected 5 | . . . . . 2 . . . . 1 . . . . . . 1 . 1 . Parts Fused 1 | . . . . . . . 1 . . . . . . . . . . . . . Data Loss (minor) 35 | . . . . . 1 2 1 1 3 7 4 1 4 2 1 1 7 . . . Data Loss (major) 8 | . . . . . 1 . . . . 1 1 . . 1 1 2 1 . . . Misfires 13 | . . . . . 1 1 . . 1 1 1 1 2 2 2 1 . . . . Alerts 8 | . . . . . 3 . . . . . . . 1 1 . . 3 . . . Misdirections 6 | . . . . . . . . . . . . . . . . 2 4 . . . Weapon Failures 8 | . . . . . . . 1 . . . 1 . 3 2 1 . . . . . Overload Shots . | . . . . . . . . . . . . . . . . . . . . . Overflow Damage 772 | . 3 9 . . 77 . 68 . 8 78 33 . 107 . . 112 166 89 22 . Projectiles 254 | . . . . . 56 . 68 . 1 78 33 . 16 . . 2 . . . . Explosions 171 | . . 9 . . 21 . . . 7 . . . 91 . . 3 . 18 22 . Melee 347 | . 3 . . . . . . . . . . . . . . 107 166 71 . . Knockbacks 4 | . 1 . . . 3 . . . . . . . . . . . . . . . Impact 1 | . 1 . . . . . . . . . . . . . . . . . . . Kinetic 3 | . . . . . 3 . . . . . . . . . . . . . . . Secondary . | . . . . . . . . . . . . . . . . . . . . . Self-Inflicted Damage 445 | . . 142 . . 27 . . . . . . . 211 . . 48 . 1 16 . Shots 11 | . . 3 . . 1 . . . . . . . 4 . . 2 . . 1 . Rammed 17 | . 6 . 2 . 1 . . . . . . . . . . 1 2 1 4 . Targets Rammed 31 | . 6 . 2 . 5 1 . . . 3 . . 1 1 . 5 2 1 4 . Kicked 13 | . . . . . 3 1 . . . 3 . . 1 1 . 4 . . . . Crushed 1 | . . . . . 1 . . . . . . . . . . . . . . . Highest Temperature 443 | . 12 250 27 . 275 61 155 197 246 301 196 138 443 300 327 439 106 . 12 123 Average Temperature 92 | . 5 150 6 . 47 20 17 106 66 92 101 64 96 108 122 138 60 . 6 79 Received Heat Transfer 3001 | . 81 345 45 . 533 24 96 . 271 360 . . . . 54 525 199 90 315 63 Effects 23 | . . . . . . . . . 3 . . . 6 5 2 7 . . . . Shutdowns 6 | . . . . . . . . . . . . . 3 . 1 2 . . . . Energy Bleed 4 | . . . . . . . . . 1 . . . . . 1 2 . . . . Interference 10 | . . . . . . . . . 2 . . . . 5 . 3 . . . . Damage (major) 3 | . . . . . . . . . . . . . 3 . . . . . . . Siege Activations 1 | . . . . . . . . . . . . . . . . . 1 . . . Total Turns 18 | . . . . . . . . . . . . . . . . . 18 . . . Longest Duration 18 | . . . . . . . . . . . . . . . . . 18 . . . Martial Activations . | . . . . . . . . . . . . . . . . . . . . . Shielding Activations . | . . . . . . . . . . . . . . . . . . . . . Robots Disrupted 1 | . . . . . . . . . . . . . 1 . . . . . . . Combat Hostiles 1 | . . . . . . . . . . . . . 1 . . . . . . . Robots Corrupted 20 | . 1 . . . . . 3 . 1 3 . 1 4 . . 7 . . . . Combat Hostiles 16 | . . . . . . . 2 . 1 3 . . 3 . . 7 . . . . Parts Fried 48 | . 1 . . . . 2 8 . 2 8 . 1 11 . . 15 . . . . Impact Corruptions 1 | . 1 . . . . . . . . . . . . . . . . . . . Robots Melted 3 | . . . . . 2 . . . . . . . . 1 . . . . . . Combat Hostiles 2 | . . . . . 1 . . . . . . . . 1 . . . . . . Parts Melted 16 | . . . . . 6 1 1 . . 2 . . 4 2 . . . . . . Heat Transferred 6537 | . . . . . 3178 559 50 . 300 550 . . 1100 150 650 . . . . . Parts Sabotaged . | . . . . . . . . . . . . . . . . . . . . . Parts Stolen . | . . . . . . . . . . . . . . . . . . . . . Parts Stripped . | . . . . . . . . . . . . . . . . . . . . . Power Chain Reactions 2 | . . . . . . . 1 . . 1 . . . . . . . . . . Alert | -11 -10 -10 -8 -8 -6 -6 -6 -6 -5 -5 -5 -5 -4 -4 -4 -3 -3 -2 -2 -2 ------- Run | Yrd Mat Sub Rec Scr Fac Low Low Dat Pro Fac Upp Upp Fac Upp Upp Res Qua Res Tes Frg Maximum Alert Level 3 | . . . . . 1 . . . . 3 . . 1 . . 2 1 1 2 1 Low Security (%) 79 | 100 100 . 100 . 95 . . . . 69 . . 58 . . 29 79 98 64 . Level 1 13 | . . . . . 4 . . . . 12 . . 41 . . 15 20 1 29 100 Level 2 5 | . . . . . . . . . . 9 . . . . . 54 . . 6 . Level 3 . | . . . . . . . . . . 8 . . . . . . . . . . Level 4 . | . . . . . . . . . . . . . . . . . . . . . Level 5 . | . . . . . . . . . . . . . . . . . . . . . High Security . | . . . . . . . . . . . . . . . . . . . . . Max Security . | . . . . . . . . . . . . . . . . . . . . . Peak Influence 840 | . 180 . 52 . 214 . . . . 840 . . 395 . . 584 250 206 501 281 Initial 281 | . . . 52 . . . . . . 81 . . 150 . . . 249 27 . 281 Average 111 | . 14 . 17 . 44 . . . . 183 . . 172 . . 338 131 63 191 251 Influence Increases 6650 | . 432 135 203 . 752 140 126 . 265 1130 158 . 793 60 80 904 208 465 757 42 Destroy 0b10 Robot/C 3240 | . 260 120 40 . 480 120 100 . 240 480 120 . 320 40 60 520 120 100 120 . Destroy 0b10 Robot/NC 300 | . 30 . 35 . 35 . . . 5 70 . . 35 . . 5 20 25 40 . Destroy Leader 634 | . 64 . . . 134 10 20 . 20 116 10 . 82 20 20 82 20 26 10 . Allied During Kill 153 | . . . . . 20 10 6 . . 85 28 . 4 . . . . . . . Successful Hack 96 | . 17 . 37 . 20 . . . . . . . . . . . 6 11 5 . Select Force Hacks 120 | . 30 . 90 . . . . . . . . . . . . . . . . . Disable Machine 465 | . . . . . 15 . . . . 165 . . 210 . . 45 15 . 15 . Anti-Garrison Action 150 | . . . . . . . . . . 150 . . . . . . . . . . Destroy Structure 592 | . 16 . 1 . 48 . . . . 64 . . 142 . . 42 12 63 192 12 Partial Spotted 120 | . . . . . . . . . . . . . . . . . . 120 . . Lose Combat Pursuer 780 | . 15 15 . . . . . . . . . . . . . 210 15 120 375 30 Influence Decreases 6407 | . 432 24 314 . 547 307 164 . 134 439 635 106 663 429 80 461 602 514 256 300 Entered New Map 1227 | . . . 59 . . 77 8 . . 50 305 66 89 137 . . 194 22 . 220 Time Decay 4016 | . 272 24 255 . 330 230 131 . 114 329 310 40 434 292 80 311 368 230 206 60 Lost Part 569 | . 10 . . . 47 . . . 20 40 . . 80 . . 150 40 112 50 20 Lost Ally 145 | . . . . . 20 . 25 . . 20 20 . 60 . . . . . . . Purge Threat 450 | . 150 . . . 150 . . . . . . . . . . . . 150 . . Squads Dispatched 61 | . 2 . . . 13 . . . 1 11 . . 10 . . 8 3 6 5 2 Investigation 21 | . 1 . . . 6 . . . . 4 . . 4 . . 1 1 3 . 1 Extermination 13 | . . . . . 4 . . . . 2 . . 2 . . 1 1 2 1 . Reinforcement 20 | . 1 . . . 3 . . . . 2 . . 4 . . 3 1 1 4 1 Assault 3 | . . . . . . . . . 1 2 . . . . . . . . . . Garrison 4 | . . . . . . . . . . 1 . . . . . 3 . . . . Intercept . | . . . . . . . . . . . . . . . . . . . . . Searches Triggered . | . . . . . . . . . . . . . . . . . . . . . Data Miner Redirects 8 | . . . . . . . . . . 3 . . 3 . . . . 1 . 1 Construction Impeded 8 | . . . . . . . . . . 1 . . 3 . . 2 . . 2 . Haulers Reinforced 1 | . . . . . 1 . . . . . . . . . . . . . . . Active Scanning Responses . | . . . . . . . . . . . . . . . . . . . . . Cargo Convoy Interrupts . | . . . . . . . . . . . . . . . . . . . . . Stealth | -11 -10 -10 -8 -8 -6 -6 -6 -6 -5 -5 -5 -5 -4 -4 -4 -3 -3 -2 -2 -2 --------- Run | Yrd Mat Sub Rec Scr Fac Low Low Dat Pro Fac Upp Upp Fac Upp Upp Res Qua Res Tes Frg Distress Signals 20 | . 1 . . . 1 . . . . 4 . . 1 . . 2 1 6 4 . Communications Jammed . | . . . . . . . . . . . . . . . . . . . . . Distress Signals . | . . . . . . . . . . . . . . . . . . . . . Times Spotted 308 | . 27 11 2 . 28 6 5 . 13 35 6 1 17 2 3 53 15 32 36 16 Peak Tracking Total 20 | . 5 3 1 . 5 5 4 . 5 5 3 1 6 1 2 13 5 19 20 13 Tactical Retreats 23 | . 1 1 . . . . . . . . . . . . . 8 1 4 7 1 Traps | -11 -10 -10 -8 -8 -6 -6 -6 -6 -5 -5 -5 -5 -4 -4 -4 -3 -3 -2 -2 -2 ------- Run | Yrd Mat Sub Rec Scr Fac Low Low Dat Pro Fac Upp Upp Fac Upp Upp Res Qua Res Tes Frg Traps Triggered 8 | . . . . . 2 . . . . 1 . . 1 . . 1 1 1 1 . Indirectly . | . . . . . . . . . . . . . . . . . . . . . Trap Hack Attempts . | . . . . . . . . . . . . . . . . . . . . . Triggered . | . . . . . . . . . . . . . . . . . . . . . Disarmed . | . . . . . . . . . . . . . . . . . . . . . Reprogrammed . | . . . . . . . . . . . . . . . . . . . . . Reused . | . . . . . . . . . . . . . . . . . . . . . Traps Extracted . | . . . . . . . . . . . . . . . . . . . . . Installed . | . . . . . . . . . . . . . . . . . . . . . Triggered . | . . . . . . . . . . . . . . . . . . . . . Machines | -11 -10 -10 -8 -8 -6 -6 -6 -6 -5 -5 -5 -5 -4 -4 -4 -3 -3 -2 -2 -2 ---------- Run | Yrd Mat Sub Rec Scr Fac Low Low Dat Pro Fac Upp Upp Fac Upp Upp Res Qua Res Tes Frg Machines Disabled 36 | . . 4 . . 1 . . . . 12 . . 14 . . 3 1 . 1 . Max in Single Turn 7 | . . 2 . . 1 . . . . 7 . . 6 . . 1 1 . 1 . Garrison Access 3 | . . . . . . . . . . 1 . . . . . . . 2 . . Machines Repaired . | . . . . . . . . . . . . . . . . . . . . . Machines Dismantled . | . . . . . . . . . . . . . . . . . . . . . Machines Sabotaged . | . . . . . . . . . . . . . . . . . . . . . Overloaded Fab Kills . | . . . . . . . . . . . . . . . . . . . . . Hacking | -11 -10 -10 -8 -8 -6 -6 -6 -6 -5 -5 -5 -5 -4 -4 -4 -3 -3 -2 -2 -2 --------- Run | Yrd Mat Sub Rec Scr Fac Low Low Dat Pro Fac Upp Upp Fac Upp Upp Res Qua Res Tes Frg Machines Accessed 64 | . 8 . 9 4 13 1 . 4 . 3 . . 4 . . 2 3 10 1 2 Terminals 29 | . 7 . 6 . 3 . . . . . . . . . . 2 2 6 1 2 Fabricators 3 | . . . . . 2 . . . . . . . . . . . . 1 . . Repair Stations 3 | . . . . . 2 . . . . . . . . . . . 1 . . . Recycling Units 18 | . 1 . 3 . 6 . . . . 3 . . 4 . . . . 1 . . Scanalyzers . | . . . . . . . . . . . . . . . . . . . . . Garrison Access 2 | . . . . . . . . . . . . . . . . . . 2 . . Total Hacks 166 | . 18 . 16 8 26 1 . 34 . 6 . . 10 . . 4 6 31 3 3 Successful 101 | . 9 . 10 8 10 1 . 34 . 1 . . 4 . . . 2 19 3 . Failed 65 | . 9 . 6 . 16 . . . . 5 . . 6 . . 4 4 12 . 3 Catastrophic 15 | . 1 . 3 . 4 . . . . 1 . . . . . 1 2 1 . 2 Database Lockouts . | . . . . . . . . . . . . . . . . . . . . . Manual 87 | . 15 . 11 . 20 . . . . 6 . . 10 . . 2 1 19 2 1 Terminals 71 | . 17 . 13 . 7 . . . . . . . . . . 4 2 22 3 3 Fabricators 8 | . . . . . 4 . . . . . . . . . . . . 4 . . Repair Stations 8 | . . . . . 4 . . . . . . . . . . . 4 . . . Recycling Units 34 | . 1 . 3 . 11 . . . . 6 . . 10 . . . . 3 . . Scanalyzers . | . . . . . . . . . . . . . . . . . . . . . Garrison Access 2 | . . . . . . . . . . . . . . . . . . 2 . . Terminal Hacks 60 | . 3 . 2 8 2 1 . 34 . . . . . . . . . 8 2 . Record 18 | . . . . 7 . . . 11 . . . . . . . . . . . . Part Schematic 14 | . . . . . . . . 13 . . . . . . . . . 1 . . Robot Schematic 7 | . . . . . . . . 7 . . . . . . . . . . . . Prototype ID Bank 4 | . 1 . . . . . . 3 . . . . . . . . . . . . Open Door 1 | . . . . . . 1 . . . . . . . . . . . . . . Branch Access Points 1 | . . . . . . . . . . . . . . . . . . 1 . . Terminal Index 4 | . . . . . 1 . . . . . . . . . . . . 2 1 . Recycling Unit Index 1 | . . . . . . . . . . . . . . . . . . 1 . . Alert Level 2 | . . . 1 . . . . . . . . . . . . . . 1 . . Unreport Threat 3 | . 1 . . . 1 . . . . . . . . . . . . 1 . . Locate Traps 2 | . 1 . . . . . . . . . . . . . . . . . 1 . Hauler Manifests 1 | . . . 1 . . . . . . . . . . . . . . . . . Zone Layout 1 | . . . . . . . . . . . . . . . . . . 1 . . Proto ID Catalog 1 | . . . . 1 . . . . . . . . . . . . . . . . Fabricator Hacks 1 | . . . . . . . . . . . . . . . . . . 1 . . Load Schematic 1 | . . . . . . . . . . . . . . . . . . 1 . . Repair Station Hacks 3 | . . . . . 1 . . . . . . . . . . . 2 . . . Scan Component 2 | . . . . . 1 . . . . . . . . . . . 1 . . . Repair 1 | . . . . . . . . . . . . . . . . . 1 . . . Recycling Unit Hacks . | . . . . . . . . . . . . . . . . . . . . . Scanalyzer . | . . . . . . . . . . . . . . . . . . . . . Garrison Access Hacks 2 | . . . . . . . . . . . . . . . . . . 2 . . Seal Access 2 | . . . . . . . . . . . . . . . . . . 2 . . Unauthorized Hacks 35 | . 6 . 8 . 7 . . . . 1 . . 4 . . . . 8 1 . Terminals 17 | . 5 . 5 . . . . . . . . . . . . . . 6 1 . Botnet 3 | . . . . . . . . . . . . . . . . . . 2 1 . Disrupt 1 | . . . . . . . . . . . . . . . . . . 1 . . Operators 1 | . . . . . . . . . . . . . . . . . . 1 . . Skim 11 | . 5 . 5 . . . . . . . . . . . . . . 1 . . Sabotage 1 | . . . . . . . . . . . . . . . . . . 1 . . Fabricators 3 | . . . . . 2 . . . . . . . . . . . . 1 . . Liberate 1 | . . . . . 1 . . . . . . . . . . . . . . . Fabnet 1 | . . . . . 1 . . . . . . . . . . . . . . . Recompile 1 | . . . . . . . . . . . . . . . . . . 1 . . Repair Stations . | . . . . . . . . . . . . . . . . . . . . . Recycling Units 15 | . 1 . 3 . 5 . . . . 1 . . 4 . . . . 1 . . Tunnel 4 | . 1 . 3 . . . . . . . . . . . . . . . . . Fedlink 9 | . . . . . 5 . . . . . . . 3 . . . . 1 . . Scrapoids 1 | . . . . . . . . . . 1 . . . . . . . . . . Scraphulk 1 | . . . . . . . . . . . . . 1 . . . . . . . Scanalyzers . | . . . . . . . . . . . . . . . . . . . . . Garrison Access . | . . . . . . . . . . . . . . . . . . . . . Data Cores Recovered 1 | . . . . . . . . . . . . . . . . . . . 1 . Used . | . . . . . . . . . . . . . . . . . . . . . Hacking Detections 37 | . 7 . 5 . 7 . . . . 2 . . 3 . . 2 2 6 1 2 Full Trace Events 6 | . 1 . . . 1 . . . . 2 . . . . . 1 . . . 1 Feedback Events 1 | . . . . . . . . . . . . . . . . . . . . 1 Corruption 1 | . . . . . . . . . . . . . . . . . . . . 1 Feedback Blocked . | . . . . . . . . . . . . . . . . . . . . . Robot Schematics Acquired 7 | . . . . . . . . 7 . . . . . . . . . . . . Robots Built . | . . . . . . . . . . . . . . . . . . . . . Authchips . | . . . . . . . . . . . . . . . . . . . . . Time . | . . . . . . . . . . . . . . . . . . . . . Total Robot Build Rating . | . . . . . . . . . . . . . . . . . . . . . Part Schematics Acquired 14 | . . . . . . . . 13 . . . . . . . . . 1 . . Parts Built . | . . . . . . . . . . . . . . . . . . . . . Authchips . | . . . . . . . . . . . . . . . . . . . . . Time . | . . . . . . . . . . . . . . . . . . . . . Total Part Build Rating . | . . . . . . . . . . . . . . . . . . . . . Parts Repaired 1 | . . . . . . . . . . . . . . . . . 1 . . . Time 89 | . . . . . . . . . . . . . . . . . 89 . . . Parts Recycled . | . . . . . . . . . . . . . . . . . . . . . Recycled Matter . | . . . . . . . . . . . . . . . . . . . . . Retrieved Matter . | . . . . . . . . . . . . . . . . . . . . . Retrieved Components . | . . . . . . . . . . . . . . . . . . . . . Parts Scanalyzed . | . . . . . . . . . . . . . . . . . . . . . Part Schematics Acquired . | . . . . . . . . . . . . . . . . . . . . . Parts Damaged . | . . . . . . . . . . . . . . . . . . . . . Bothacking | -11 -10 -10 -8 -8 -6 -6 -6 -6 -5 -5 -5 -5 -4 -4 -4 -3 -3 -2 -2 -2 ------------ Run | Yrd Mat Sub Rec Scr Fac Low Low Dat Pro Fac Upp Upp Fac Upp Upp Res Qua Res Tes Frg Used RIF Installer . | . . . . . . . . . . . . . . . . . . . . . Robots Hacked 1 | . . . . . . . . . . . . 1 . . . . . . . . Non-combat . | . . . . . . . . . . . . . . . . . . . . . Combat 1 | . . . . . . . . . . . . 1 . . . . . . . . Robot Hacks Applied . | . . . . . . . . . . . . . . . . . . . . . Relay Couplers Released 2 | . . . . . . . . . . 2 . . . . . . . . . . Machine Destruction 2 | . . . . . . . . . . 2 . . . . . . . . . . Fabnet Peak Effective % 3 | . . . . . . . . . 3 3 3 3 1 1 1 . . . . . Autooverrided 1 | . . . . . . . . . . . . 1 . . . . . . . . Robots Rewired 2 | . . . . . . 1 . . 1 . . . . . . . . . . . Allies Hacked 1 | . . . . . . . . . . . . . 1 . . . . . . . Hacks Repelled . | . . . . . . . . . . . . . . . . . . . . . Allies | -11 -10 -10 -8 -8 -6 -6 -6 -6 -5 -5 -5 -5 -4 -4 -4 -3 -3 -2 -2 -2 -------- Run | Yrd Mat Sub Rec Scr Fac Low Low Dat Pro Fac Upp Upp Fac Upp Upp Res Qua Res Tes Frg Total Allies 14 | . . . . . 5 1 . . 1 5 . 1 1 . . . . . . . Largest Group 5 | . . . . . 5 2 2 . 1 5 3 3 2 . . . . . . . Highest-Rated Group 235 | . . . . . 169 70 70 . 29 235 141 143 123 . . . . . . . Highest-Rated Ally 123 | . . . . . 41 41 41 . 29 47 47 49 123 . . . . . . . Total Orders . | . . . . . . . . . . . . . . . . . . . . . Ally Attacks 148 | . . . . . 20 18 19 . . 58 27 1 5 . . . . . . . Total Damage 3475 | . . . . . 536 576 417 . . 1089 665 30 162 . . . . . . . Kills 22 | . . . . . 5 2 1 . . 10 4 . . . . . . . . . Allies Corrupted 3 | . . . . . . . 1 . . 1 . 1 . . . . . . . . Allies Melted . | . . . . . . . . . . . . . . . . . . . . . Intel | -11 -10 -10 -8 -8 -6 -6 -6 -6 -5 -5 -5 -5 -4 -4 -4 -3 -3 -2 -2 -2 ------- Run | Yrd Mat Sub Rec Scr Fac Low Low Dat Pro Fac Upp Upp Fac Upp Upp Res Qua Res Tes Frg Active Infowar (turns) 7530 | . . . . . 1884 41 27 . 700 622 681 93 995 319 294 133 690 478 434 139 Optics 632 | . . . . . . . . . . . . . . . . . . 59 434 139 Sensors 6232 | . . . . . 1884 41 27 . 700 622 681 93 995 319 294 133 443 . . . Structural 1184 | . . . . . . . . . . . . . . . . . 503 478 203 . Jamming 11 | . . . . . . . . . . . . . . . . . . 11 . . Robot Analysis Total . | . . . . . . . . . . . . . . . . . . . . . Derelict Logs Recovered 5 | . . . . . . 1 . . 1 . 1 . . 2 . . . . . . Drone Launches . | . . . . . . . . . . . . . . . . . . . . . Drone Recoveries . | . . . . . . . . . . . . . . . . . . . . . Exploration | -11 -10 -10 -8 -8 -6 -6 -6 -6 -5 -5 -5 -5 -4 -4 -4 -3 -3 -2 -2 -2 ------------- Run | Yrd Mat Sub Rec Scr Fac Low Low Dat Pro Fac Upp Upp Fac Upp Upp Res Qua Res Tes Frg Turns Passed 17056 | 2 1512 664 778 2372 2385 484 594 136 977 1081 681 93 1283 789 513 772 857 510 434 139 Spaces Moved 9674 | 1 838 384 434 1449 1176 323 326 99 289 378 314 40 507 400 326 343 540 851 467 189 Core 879 | . . . . . . . . . . . . . . . . 174 92 1 423 189 Treads 3550 | . 749 384 434 1449 321 . . . . . . . . . . 2 211 . . . Legs 4158 | 1 89 . . . 855 323 326 99 289 378 314 40 507 400 326 167 . . 44 . Wheels . | . . . . . . . . . . . . . . . . . . . . . Hover 219 | . . . . . . . . . . . . . . . . . 219 . . . Flight 868 | . . . . . . . . . . . . . . . . . 18 850 . . Fastest Speed 32 | 120 120 160 160 160 120 130 130 130 130 206 209 209 126 126 126 50 37 32 50 50 Average Speed 135 | 120 155 160 160 162 132 130 158 131 203 207 209 209 186 126 126 91 99 37 57 50 Slowest Speed 330 | 120 160 160 160 163 330 130 213 213 220 225 209 209 205 209 126 266 172 120 250 50 Overloaded Moves . | . . . . . . . . . . . . . . . . . . . . . Propulsion Burnouts . | . . . . . . . . . . . . . . . . . . . . . Robots Hopped 9 | . . . . . . . . . . . . . . . . . . 9 . . Potential Cave-ins 59 | . . . . . . . . . . . . . 6 . . 41 . . . 12 Cave-ins Triggered . | . . . . . . . . . . . . . . . . . . . . . Exploration Rate (%) 43 | 2 93 34 66 90 33 48 48 70 43 12 63 10 14 60 42 14 54 37 64 14 Regions Visited 20 Branch Regions 14 Pre-discovered Areas 6 | . 1 . 3 . 1 . . 1 . . . . . . . . . . . . Known Exits Taken 15 | . 1 . . . 1 1 1 1 1 1 1 1 1 1 . 1 1 1 1 . Unknown Exits Taken 5 | 1 . 1 1 1 . . . . . . . . . . 1 . . . . . Scrap Searched 15 | . . . . 5 . 2 1 . 1 . 2 . . 2 2 . . . . . Spaces Dug 192 | . . 16 . . 19 . . . 8 . . . 4 . . 48 6 29 47 15 Terrain Destroyed 530 | . 14 102 . . 47 3 . . 43 15 . . 84 14 11 59 6 29 88 15 Melee 74 | . . . . . . . . . . . . . . . . 44 6 7 2 15 Projectile 113 | . . . . . 33 3 . . 16 3 . . 16 14 11 5 . . 12 . AOE 343 | . 14 102 . . 14 . . . 27 12 . . 68 . . 10 . 22 74 . Terrain Rammed . | . . . . . . . . . . . . . . . . . . . . . Walls Destroyed . | . . . . . . . . . . . . . . . . . . . . . Machines Disabled . | . . . . . . . . . . . . . . . . . . . . . Actions | -11 -10 -10 -8 -8 -6 -6 -6 -6 -5 -5 -5 -5 -4 -4 -4 -3 -3 -2 -2 -2 --------- Run | Yrd Mat Sub Rec Scr Fac Low Low Dat Pro Fac Upp Upp Fac Upp Upp Res Qua Res Tes Frg Total 12422 | 1 960 413 467 1464 1823 366 367 108 608 515 328 45 734 675 401 603 771 1001 568 204 Wait 1319 | . 2 1 5 1 406 2 9 . 234 15 . . 69 248 33 48 128 96 22 . Move 9641 | . 837 383 433 1448 1175 322 325 98 288 377 313 39 506 399 325 342 539 837 466 189 Hop 5 | . . . . . . . . . . . . . . . . . . 5 . . Pick Up 142 | . 19 3 1 6 29 8 4 3 3 8 3 1 15 7 2 11 6 6 7 . Fast Attach 98 | . 1 1 . 1 14 1 . 2 . 7 . . 7 2 . 17 21 13 11 . Attach 73 | . 4 3 . . 15 . 1 . 4 5 . . 11 1 2 9 4 7 7 . Detach 17 | . . . . . 1 . . . . . . . 2 . . 4 2 4 4 . Swap 161 | 1 12 4 2 2 32 4 2 . 20 16 3 2 34 4 5 15 . . 3 . Drop 176 | . 23 2 1 6 34 10 4 5 2 9 3 1 18 4 . 19 12 11 12 . Fire 545 | . 56 14 22 . 102 13 22 . 43 75 6 2 71 9 34 46 . 1 29 . Melee 182 | . . . . . . . . . . . . . . . . 87 56 21 3 15 Ram 1 | . . . . . . . . . . . . . . . . . 1 . . . Kick 13 | . . . . . 3 1 . . . 3 . . 1 1 . 4 . . . . Crush 17 | . 6 . 2 . 2 . . . . . . . . . . 1 2 . 4 . Escape Stasis 10 | . . . . . 10 . . . . . . . . . . . . . . . Rewire 19 | . . . . . . 5 . . 14 . . . . . . . . . . . Trap . | . . . . . . . . . . . . . . . . . . . . . Miscellaneous 3 | . . 2 1 . . . . . . . . . . . . . . . . . Route ------- -11/Scrapyard -10/Materials (discovered 5 exits: [*Mat x3] / Min / *Sub) -10/Subcaves (discovered 2 exits: [*Mat] / *Rec) -8/Recycling (discovered 2 exits: *Fac / *Scr) -8/Scraptown (discovered 2 exits: *Fac x2) -6/Factory (discovered 3 exits: *Fac x2 / *Low) -6/Lower Caves -6/Lower Caves (discovered 2 exits: *Fac / *Dat) -6/Data Miner -5/Proximity Caves -5/Factory (discovered 4 exits: Fac x2 / *Upp x2) -5/Upper Caves -5/Upper Caves -4/Factory -4/Upper Caves -4/Upper Caves -3/Research (discovered 2 exits: Res / *Qua) -3/Quarantine -2/Research (discovered 2 exits: *Tes x2) -2/Testing (discovered 2 exits: [*Sec] / *Frg) -2/Protoforge History --------- Turn | Location | Event 3 | -11/Scrapyard | Discovered new exit (range 0) 3 | -11/Scrapyard | Entered Materials 262 | -10/Materials | Discovered new exit (range 8) 326 | -10/Materials | Build established: Mutant 776 | -10/Materials | Discovered new exit (range 16) 1013 | -10/Materials | Discovered new exit (range 16) 1196 | -10/Materials | Identified exit to Subcaves 1196 | -10/Materials | Identified exit to Mines 1196 | -10/Materials | Learned location of 1 exit from Materials 1273 | -10/Materials | Learned location of 2 exits from Materials 1383 | -10/Materials | Learned 4 Materials zone layouts 1515 | -10/Materials | Entered Subcaves 1665 | -10/Subcaves | Shifting Twisted Machinery released Sub. Shrapnel Launcher 1668 | -10/Subcaves | Shifting Twisted Machinery released Sub. Power Source 1837 | -10/Subcaves | A swath of the cavern ceiling suddenly collapsed 1995 | -10/Subcaves | A Subdweller sparked back to life 1995 | -10/Subcaves | A Subdweller sparked back to life 1995 | -10/Subcaves | A Subdweller sparked back to life 2004 | -10/Subcaves | Ambushed by Subdweller buried in earth 2029 | -10/Subcaves | Found Prototype Power Core 2029 | -10/Subcaves | Identified Meta Core 2031 | -10/Subcaves | Attached Meta Core, gained temporary slots: Propulsion, Utility, Weapon 2099 | -10/Subcaves | Discovered new exit (range 15) 2131 | -10/Subcaves | Core integrity fell below 50% 2131 | -10/Subcaves | Discovered new exit (range 12) 2179 | -10/Subcaves | Entered Recycling 2327 | -8/Recycling | Build established: Tank 2423 | -8/Recycling | Discovered new exit (range 9) 2914 | -8/Recycling | Learned Factory security intel 2921 | -8/Recycling | Scanned before Scraplab entrance 2943 | -8/Recycling | Entered Scraplab 2956 | -8/Recycling | Discovered new exit (range 2) 2957 | -8/Recycling | Entered Scraptown 3174 | -8/Scraptown | Heard Great Nut preacher, LISTEN AND RECITE! 3346 | -8/Scraptown | Discovered new exit (range 5) 3483 | -8/Scraptown | Visited Spacefarers 3559 | -8/Scraptown | Visited Cyclists 3600 | -8/Scraptown | Visited Shadow of the Wyrm 3642 | -8/Scraptown | Visited Assassins FH 3894 | -8/Scraptown | Visited Awakened 3913 | -8/Scraptown | Visited Cave Peace 3973 | -8/Scraptown | Visited TADAMA 4148 | -8/Scraptown | Visited UFD Registry 4148 | -8/Scraptown | Registered with UFD as "Fluxtank" 4184 | -8/Scraptown | Visited Science Guys 4266 | -8/Scraptown | Visited Scrapoid Research Area 4326 | -8/Scraptown | Delivered Scrap Shield to a Scientist 4483 | -8/Scraptown | Visited Science Testing Area 4506 | -8/Scraptown | Visited DA-N13 Charitable Foundation 4514 | -8/Scraptown | Found DCF Scrap (29 items) 4605 | -8/Scraptown | Visited Scrap Suit Storage 4653 | -8/Scraptown | Visited Scrapoid Pod Storage 4715 | -8/Scraptown | Visited Abandonware Association 4741 | -8/Scraptown | Learned abandonware demo "MELTYB.EXE" 4785 | -8/Scraptown | Visited Junk Repository 4853 | -8/Scraptown | Visited Cartography Club 4924 | -8/Scraptown | Found Surveybot 17 Chip 5234 | -8/Scraptown | Met Optimus 5234 | -8/Scraptown | Accepted into 0bPrime 5322 | -8/Scraptown | Discovered new exit (range 5) 5329 | -8/Scraptown | Entered Factory 5329 | -6/Factory | Evolved 8 slots: Power x1, Propulsion x2, Utility x5 5430 | -6/Factory | Spotted B-75 Beast 5455 | -6/Factory | Destroyed B-75 Beast 5525 | -6/Factory | Loaded intel: 8 recycling unit locations 5869 | -6/Factory | Build established: Derelict-Skirmisher 5899 | -6/Factory | Learned location of Protoforge (-2) 6037 | -6/Factory | Lost 4 parts (1n2u1w) 6294 | -6/Factory | Build established: Scavenger-Mutant 6480 | -6/Factory | Discovered new exit (range 12) 6515 | -6/Factory | Identified exit to Lower Caves 6572 | -6/Factory | Found Prototype Processor 6572 | -6/Factory | Identified Exp. Targeting Computer 6653 | -6/Factory | Build established: Mutant 6792 | -6/Factory | Discovered new exit (range 16) 6811 | -6/Factory | Identified exit to Factory 7005 | -6/Factory | Build established: Scavenger-Mutant 7040 | -6/Factory | Discovered exit to Factory (range 14) 7714 | -6/Factory | Entered Lower Caves 7714 | -6/Lower Caves | Accompanied by 1 ally 7716 | -6/Lower Caves | UFD Scientist delivered a prototype 7718 | -6/Lower Caves | Found Prototype Protection 7718 | -6/Lower Caves | Identified Enh. Scrap Shield 7828 | -6/Lower Caves | Attracted the attention of an 0b10 outpost 8024 | -6/Lower Caves | Build established: Mutant 8045 | -6/Lower Caves | Spotted B-75 Beast 8062 | -6/Lower Caves | Destroyed B-75 Beast 8116 | -6/Lower Caves | Encountered a Warlord checkpoint 8191 | -6/Lower Caves | Discovered new exit (range 6) 8197 | -6/Lower Caves | Identified exit to Lower Caves 8198 | -6/Lower Caves | Entered another Lower Caves area 8198 | -6/Lower Caves | Accompanied by 2 allies 8234 | -6/Lower Caves | Discovered exit to Factory (range 10) 8435 | -6/Lower Caves | Spotted B-75 Beast 8461 | -6/Lower Caves | Destroyed B-75 Beast 8780 | -6/Lower Caves | Discovered new exit (range 5) 8790 | -6/Lower Caves | Identified exit to Data Miner 8792 | -6/Lower Caves | Entered Data Miner 8794 | -6/Data Miner | Discovered new exit (range 6) 8803 | -6/Data Miner | Identified exit to Proximity Caves 8839 | -6/Data Miner | Met Data Miner 8862 | -6/Data Miner | Learned location of Section 7 (-2) 8862 | -6/Data Miner | Acquired the access code to Warlord's prototype stash 8884 | -6/Data Miner | Received God Mode back door access code from Data Miner 8928 | -6/Data Miner | Entered Proximity Caves 9285 | -5/Proximity Caves | Attracted the attention of an 0b10 checkpoint 9340 | -5/Proximity Caves | Learned 12 Factory zone layouts 9685 | -5/Proximity Caves | Attracted the attention of an 0b10 outpost 9780 | -5/Proximity Caves | Destroyed 9 combat bots 9881 | -5/Proximity Caves | Discovered exit to Factory (range 12) 9903 | -5/Proximity Caves | System corruption reached 10% 9905 | -5/Proximity Caves | Entered Factory 9905 | -5/Factory | Accompanied by 1 ally 9905 | -5/Factory | Evolved 2 slots: Power x1, Utility x1 9906 | -5/Factory | Identified exit to Upper Caves 9907 | -5/Factory | Identified exit to Factory 9994 | -5/Factory | Incoming investigation squad redirected 10457 | -5/Factory | Spotted B-75 Beast 10501 | -5/Factory | Destroyed B-75 Beast 10626 | -5/Factory | System corruption reached 10% 10691 | -5/Factory | Destroyed 7 combat bots 10839 | -5/Factory | Scrapoid reinforcements arrived 10845 | -5/Factory | Garrison activated, responded to threat 10907 | -5/Factory | Build established: Scavenger-Mutant 10907 | -5/Factory | Incoming assault squad redirected 10917 | -5/Factory | Incoming assault squad redirected 10949 | -5/Factory | Discovered exit to Upper Caves (range 16) 10986 | -5/Factory | Entered Upper Caves 10986 | -5/Upper Caves | Accompanied by 3 allies 11047 | -5/Upper Caves | Learned 4 Factory zone layouts 11092 | -5/Upper Caves | Attracted the attention of an 0b10 checkpoint 11653 | -5/Upper Caves | Discovered new exit (range 8) 11665 | -5/Upper Caves | Identified exit to Upper Caves 11667 | -5/Upper Caves | Entered another Upper Caves area 11667 | -5/Upper Caves | Accompanied by 2 allies 11729 | -5/Upper Caves | Discovered exit to Factory (range 13) 11760 | -5/Upper Caves | Entered Factory 11760 | -4/Factory | Accompanied by 2 allies 11760 | -4/Factory | Evolved 2 slots: Propulsion x1, Weapon x1 11761 | -4/Factory | Identified exit to Upper Caves 11817 | -4/Factory | Loaded intel: 8 recycling unit locations 11909 | -4/Factory | Incoming investigation squad redirected 12027 | -4/Factory | Incoming investigation squad redirected 12070 | -4/Factory | Build established: Scavenger-Gunner 12449 | -4/Factory | System corruption reached 10% 12490 | -4/Factory | Spotted B-86 Titan 12507 | -4/Factory | Destroyed B-86 Titan 12705 | -4/Factory | Lost 3 parts (2n1u) 12758 | -4/Factory | Scraphulk reinforcements arrived 12760 | -4/Factory | Incoming investigation squad redirected 12883 | -4/Factory | Found Scrap Suit 12898 | -4/Factory | Lost 4 parts (1p1n2u) 13043 | -4/Factory | Entered Upper Caves 13121 | -4/Upper Caves | Build established: Scavenger-Scrapper 13443 | -4/Upper Caves | Spotted B-86 Titan 13449 | -4/Upper Caves | Destroyed B-86 Titan 13484 | -4/Upper Caves | Learned Research emergency access door positions 13692 | -4/Upper Caves | Found DCF Scrap (14 items) 13755 | -4/Upper Caves | Learned location of 1 exit from Research 13820 | -4/Upper Caves | Discovered new exit (range 10) 13830 | -4/Upper Caves | Identified exit to Upper Caves 13832 | -4/Upper Caves | Entered another Upper Caves area 13934 | -4/Upper Caves | Spotted B-86 Titan 13956 | -4/Upper Caves | Destroyed B-86 Titan 14333 | -4/Upper Caves | Discovered new exit (range 8) 14345 | -4/Upper Caves | Entered Research 14345 | -3/Research | Evolved 2 slots: Propulsion x1, Utility x1 14346 | -3/Research | Identified exit to Research 14445 | -3/Research | Found Prototype Processor 14445 | -3/Research | Identified Spectral Analyzer 14464 | -3/Research | Garrison activated, responded to threat 14470 | -3/Research | System corruption reached 10% 14661 | -3/Research | Destroyed 8 combat bots 14735 | -3/Research | Destroyed 7 combat bots 14844 | -3/Research | Released all parts (14) 14875 | -3/Research | Lost 12 parts (2n4u6w) 14911 | -3/Research | Found Prototype Device 14911 | -3/Research | Identified Exp. Shield Generator 15081 | -3/Research | Core integrity fell below 50% 15091 | -3/Research | Spotted B-86 Titan 15109 | -3/Research | Discovered new exit (range 14) 15115 | -3/Research | Identified exit to Quarantine 15117 | -3/Research | Entered Quarantine 15152 | -3/Quarantine | Build established: Mutant 15232 | -3/Quarantine | Repaired Plasma Sword 15263 | -3/Quarantine | Found Prototype Launcher 15263 | -3/Quarantine | Identified Adv. Micro-nuke Launcher 15738 | -3/Quarantine | System corruption reached 30% 15933 | -3/Quarantine | Discovered exit to Research (range 8) 15974 | -3/Quarantine | Entered Research 15974 | -2/Research | Evolved 2 slots: Utility x2 16062 | -2/Research | Build established: Scavenger-Mutant 16376 | -2/Research | Spotted B-90 Cyclops 16394 | -2/Research | Build established: Hacker-Mutant 16394 | -2/Research | Identified exit to Testing 16410 | -2/Research | Loaded intel: 5 recycling unit locations 16432 | -2/Research | Incoming investigation squad redirected 16438 | -2/Research | Spotted B-90 Cyclops 16447 | -2/Research | Spotted B-90 Cyclops 16478 | -2/Research | Core integrity fell below 50% 16484 | -2/Research | Entered Testing 16514 | -2/Testing | Lost 13 parts (2p5n5u1w) 16629 | -2/Testing | Core integrity fell below 20% 16771 | -2/Testing | Spotted Striker 16771 | -2/Testing | Spotted Striker 16879 | -2/Testing | Spotted Fortress 16911 | -2/Testing | Lost 3 parts (3n) 16915 | -2/Testing | Discovered new exit (range 6) 16915 | -2/Testing | Discovered new exit (range 7) 16917 | -2/Testing | Identified exit to Protoforge 16918 | -2/Testing | Entered Protoforge 16930 | -2/Protoforge | Superfortress began startup sequence 16937 | -2/Protoforge | Spotted Hotshot 16937 | -2/Protoforge | Spotted Hotshot 16970 | -2/Protoforge | Incoming investigation squad redirected 17036 | -2/Protoforge | Spotted B-90 Cyclops 17049 | -2/Protoforge | Spotted Overlord 17057 | -2/Protoforge | Destroyed by Overlord with Heavy Hardcell Cannon Last Messages --------------- Feedback: System corruption (+1%). 16949_ ALERT: Suspicious activity at Terminal F016. Dispatching Investigation squad. 16966_ System corrupted: Energy discharge (-26). 16970_ ALERT: Higher priority target reported, redirecting investigation. 16970_ O-32 Director: "IFF HANDSHAKE FAILED. SECURING TERMINAL." 16982_ ALERT: Hostiles spotted, dispatching reinforcements to Terminal F008. 16991_ Connecting with Terminal... 16998_ Penetrated by Slug. 16998_ Adv. Medium Treads destroyed. 17000_ Slug penetrates K-01 Serf. 17010_ System corrupted: Heat flow error (+211). 17012_ Penetrated by Slug. 17039_ U-05 Engineer forms the Earth. 17053_ Yield Oscillator disabled. 17055_ C-30 ARC bursts open, deploying its payload. 17055_ H-88 Terminator unfolds itself. 17057_ Slug penetrates Overlord. 17057_ Shock Maul destroyed. Map ----- +----------------------------------------------------+ | ?????????????????????????????????????????????????? | | ?????????????????????????????????????????????????? | | ?????????????????????????????????????????????????? | | ?????????????????????????????????????????????????? | | ?????????????????????????????????????????????????? | | ?????????????????????????????????????????????????? | | ?????????????????????????????????????????????????? | | ?????????????????????????????????????????????????? | | ?????????????????????????????????????????????????? | | ?????????????????????????????????????????????????? | | ?????????????????????????????????????????????????? | | ?????????????????????????????????????????????????? | | ?????????????????????????????????????????????????? | | ?????????????????????????????????????????????????? | | ?????????????????????????????????????????????????? | | ????????????????##???????????????????????????????? | | ????????????????? ###????????????????????????????? | | ?????????????????? ???????????????????????????? | | ?????????? ??????? ???????????????????????????? | | ??????????""????????h%???????????????????????????? | | ??????????"""?????###h####???????????????????????? | | ????????? """ ????# u #???????????????????????? | | ????????? """ ???#"""H #???????????????????????? | | ???#???#? """ ???#"""" ###?????????????????????? | | ??? # """ ??#"""" # #?????????????????????? | | ?????? """ ?#"""" @#??????????????????????? | | ????????? # ##??????????????????????? | | ???????????? ######%#???????????????????????? | | ???????????????# ### ##???????????????????????? | | ???????????????# # ##????????????????????????? | | ???????????????### ####????????????????????????? | | ?????????????????##### #####?????????????????????? | | ?????????????????????#### #?????????????????????? | | ???????????????????????### #?????????????????????? | | ?????????????????????????# ###########???????????? | | ?????????????????????????## #???????????? | | ?????????????????????####?# #???????????? | | ?????????????????????# ?# """" #???????????? | | ?????????????????????# ?# """" #???????????? | | ???????# ########## ## """" #???????????? | | ???????# / """" #???????????? | | ???????# # #???????????? | | ???????# + """" #???????????? | | ???????# # """" #???????????? | | ???????# ###/######### # """" #???????????? | | ???????# ????????????# # """" #???????????? | | ???????# ????????????# # #???????????? | | ???????+ ????????????# # "" "" #???????????? | | ???????# ????????????# # ""T"" #???????????? | | ???????# ????????????# # """ #???????????? | +----------------------------------------------------+ Best States ------------- Heat Dissipation 103 Coolant Potential 80 Energy Generation 59 Energy Capacity 740 Matter Stores 300 Matter Capacity 300 Sight Range 20 Robot Scan Range 16 Terrain Scan Density 10 Corruption Block 20 Armor Coverage 825 Resistance: KI 30 Resistance: TH 15 Resistance: EM 25 Propulsion Shielding 66 Evasion (%) 63 Targeting Accuracy 6 Target Analysis 8 Core Analysis 6 Recoil Reduction 6 Offensive Hacking 30 Defensive Hacking 12 Authchip Count 1 Item Schematics ----------------- Combat Drone Bay | -6/Data Miner | Free Lgt. Regenerative Plating | -6/Data Miner | Free Exp. Cesium-ion Thruster | -6/Data Miner | Free Imp. Matter Compressor | -6/Data Miner | Free Hvy. Gatling Laser | -6/Data Miner | Free Imp. Linear Gravjet | -6/Data Miner | Free Graphene Brace | -6/Data Miner | Free Hvy. Disruptor Cannon | -6/Data Miner | Free Wave Gun | -6/Data Miner | Free Antimatter Reactor | -6/Data Miner | Free Imp. Fusion Compressor | -6/Data Miner | Free Adv. Component Analysis Suite | -6/Data Miner | Free Gamma Bomb Array | -6/Data Miner | Free Adv. Hacking Suite | -2/Research | Hacked Robot Schematics ------------------ D-63 Destroyer | -6/Data Miner | Free L-41 Fighter | -6/Data Miner | Free E-15 Imp | -6/Data Miner | Free B-48 Gladiator | -6/Data Miner | Free M-36 Artificer | -6/Data Miner | Free M-22 Extractor | -6/Data Miner | Free L-61 Swordsman | -6/Data Miner | Free Fabricated ------------ Nothing Repaired ---------- Plasma Sword | 1% | -3/Quarantine Alien Tech Used ----------------- None Achievements -------------- None Challenges ------------ None Game ------ Seed WaveDerelictParser Manual? 0 Play Time 02:02:18 Cumulative 909.8 hours Start 2025.05.17 @ 15:59:55 End 2025.05.17 @ 18:04:19 Sessions 1 Manual Loads 0 Difficulty Rogue Special Mode None Game No. 1490 Rogue 1490 Adventurer 0 Explorer 0 Win Type - Total 88 Types 54/1/14/14/4/0/0/1/0/0 Lore% 84 Gallery% 82 Achievement% 85 Wizard Run 0 Options --------- Layout 0 ASCII 1 Keyboard 0 Movement Numpad Keybinds 1 Fullscreen 2 Font 18/SmallcapsGlow Map View 76x50 Zoom Use 0% Tactical HUD 1 Map Filters NONE Filters NONE Steam 1 RUN: e167793c-dbf1-4c0c-bb49-967159a5c0fe